fUSD/lending_fUSD_20240518
["ID","MTS","AMOUNT","RATE_DAILY","PERIOD"]
[327403245,1716043845183,-500.0,0.00028218,2]
[327403246,1716043845194,-500.0,0.00028219,2]
[327403247,1716043845204,-500.0,0.00028219,2]
[327403248,1716043845214,-500.0,0.00028219,2]
[327403249,1716043845223,-521.45,0.00028219,2]
[327403250,1716043845233,-518.21,0.00028219,2]
[327403251,1716043845243,-500.0,0.00028219,2]
[327403252,1716043845253,-725.67,0.00028219,2]
[327403253,1716043845263,-500.0,0.00028219,2]
[327403254,1716043845272,-500.0,0.00028219,2]
[327403255,1716043845285,-500.0,0.00028219,2]
[327403256,1716043845295,-794.88,0.00028219,2]
[327403257,1716043845304,-500.0,0.00028219,2]
[327403258,1716043845314,-500.0,0.00028219,2]
[327403259,1716043845324,-500.0,0.00028219,2]
[327403260,1716043845335,-500.0,0.00028219,2]
[327403261,1716043845344,-500.0,0.00028219,2]
[327403263,1716043845354,-500.0,0.00028219,2]
[327403265,1716043845367,-515.82,0.00028219,2]
[327403267,1716043845376,-500.0,0.00028219,2]
[327403269,1716043845386,-298.35074517,0.00028491,2]
[327403271,1716043845397,-180.11767275,0.00028491,2]
[327403273,1716043845407,-500.0,0.00028491,2]
[327403275,1716043845417,-579.06615715,0.00028491,2]
[327403277,1716043845427,-500.0,0.00028491,2]
[327403280,1716043845436,-1163.37,0.00028491,2]
[327403282,1716043845447,-500.0,0.00028491,2]
[327403284,1716043845457,-500.0,0.00028491,2]
[327403286,1716043845467,-500.0,0.00028491,2]
[327403288,1716043845476,-500.0,0.00028491,2]
[327403290,1716043845486,-500.0,0.00028491,2]
[327403311,1716043845665,-500.0,0.00028491,2]
[327403315,1716043845699,-500.0,0.00028491,2]
[327403318,1716043845709,-575.84,0.00028491,2]
[327403320,1716043845719,-500.0,0.00028491,2]
[327403322,1716043845728,-500.0,0.00028491,2]
[327403324,1716043845738,-263.04,0.00028491,2]
[327403326,1716043845748,-500.0,0.00028491,2]
[327403328,1716043845757,-500.0,0.00028491,2]
[327403330,1716043845767,-500.0,0.00028491,2]
[327403332,1716043845776,-500.0,0.00028491,2]
[327403334,1716043845786,-625.68,0.00028491,2]
[327403336,1716043845795,-500.0,0.00028491,2]
[327403338,1716043845805,-500.0,0.00028491,2]
[327403340,1716043845814,-500.0,0.00028491,2]
[327403342,1716043845823,-500.0,0.00028491,2]
[327403344,1716043845832,-500.0,0.00028491,2]
[327403346,1716043845841,-500.0,0.00028491,2]
[327403348,1716043845851,-786.04,0.00028491,2]
[327403350,1716043845860,-500.0,0.00028491,2]
[327403352,1716043845871,-500.0,0.00028491,2]
[327403354,1716043845880,-500.0,0.00028491,2]
[327403356,1716043845889,-500.0,0.00028491,2]
[327403358,1716043845899,-500.0,0.00028491,2]
[327403360,1716043845908,-1056.08,0.00028491,2]
[327403363,1716043845918,-500.0,0.00028491,2]
[327403366,1716043845927,-628.44,0.00028491,2]
[327403369,1716043845936,-553.98,0.00028491,2]
[327403372,1716043845945,-533.33,0.00028491,2]
[327403375,1716043845954,-500.0,0.00028491,2]
[327403377,1716043845964,-500.0,0.00028491,2]
[327403380,1716043845973,-500.0,0.00028491,2]
[327403383,1716043845983,-500.0,0.00028491,2]
[327403387,1716043845992,-500.0,0.00028491,2]
[327403389,1716043846002,-500.0,0.00028491,2]
[327403391,1716043846011,-500.0,0.00028491,2]
[327403394,1716043846021,-500.0,0.00028491,2]
[327403396,1716043846031,-500.0,0.00028491,2]
[327403398,1716043846040,-525.27,0.00028491,2]
[327403400,1716043846050,-500.0,0.00028491,2]
[327403401,1716043846059,-631.26,0.00028491,2]
[327403404,1716043846068,-1903.5,0.00028491,2]
[327403405,1716043846078,-1461.37,0.00028491,2]
[327403407,1716043846087,-500.0,0.00028491,2]
[327403410,1716043846097,-500.0,0.00028491,2]
[327403412,1716043846106,-579.34969071,0.00028491,2]
[327403414,1716043846116,-500.0,0.00028491,2]
[327403416,1716043846125,-500.0,0.00028491,2]
[327403418,1716043846135,-534.41,0.00028491,2]
[327403420,1716043846144,-3002.35,0.00028491,2]
[327403422,1716043846154,-522.00048693,0.00028491,2]
[327403424,1716043846163,-500.0,0.00028491,2]
[327403426,1716043846172,-500.0,0.00028491,2]
[327403428,1716043846182,-2677.22,0.00028491,2]
[327403430,1716043846195,-707.42,0.00028491,2]
[327403432,1716043846206,-500.0,0.00028491,2]
[327403434,1716043846215,-500.0,0.00028492,2]
[327403436,1716043846225,-500.0,0.00028492,2]
[327403438,1716043846234,-584.61,0.00028492,2]
[327403440,1716043846243,-500.0,0.00028492,2]
[327403442,1716043846253,-500.0,0.00028492,2]
[327403444,1716043846262,-500.0,0.00028492,2]
[327403446,1716043846271,-500.0,0.00028492,2]
[327403448,1716043846284,-547.8,0.00028492,2]
[327403450,1716043846294,-500.0,0.00028492,2]
[327403452,1716043846303,-499.59880002,0.00028492,2]
[327403454,1716043846313,-508.47,0.00028492,2]
[327403456,1716043846323,-500.0,0.00028492,2]
[327403458,1716043846332,-679.02,0.00028492,2]
[327403460,1716043846342,-646.11,0.00028492,2]
[327403462,1716043846351,-500.0,0.00028492,2]
[327403464,1716043846360,-619.34,0.00028492,2]
[327403467,1716043846372,-180.46,0.00028492,2]
[327403470,1716043846381,-500.0,0.00028492,2]
[327403473,1716043846391,-500.0,0.00028492,2]
[327403476,1716043846400,-948.82,0.00028492,2]
[327403479,1716043846410,-406.37,0.00028492,2]
[327403481,1716043846420,-2048.85,0.00028492,2]
[327403483,1716043846429,-728.94,0.00028492,2]
[327403485,1716043846439,-500.0,0.00028492,2]
[327403487,1716043846449,-500.0,0.00028492,2]
[327403489,1716043846458,-500.0,0.00028492,2]
[327403491,1716043846468,-534.99,0.00028492,2]
[327403493,1716043846477,-440.91191869,0.00028492,2]
[327403495,1716043846486,-500.0,0.00028492,2]
[327403497,1716043846496,-500.0,0.00028492,2]
[327403499,1716043846505,-500.0,0.00028492,2]
[327403501,1716043846514,-500.0,0.00028492,2]
[327403503,1716043846524,-500.0,0.00028492,2]
[327403505,1716043846534,-510.05,0.00028492,2]
[327403507,1716043846543,-500.0,0.00028492,2]
[327403509,1716043846553,-285.11832633,0.00028492,2]
[327403512,1716043846563,-500.0,0.00028492,2]
[327403514,1716043846573,-500.0,0.00028492,2]
[327403516,1716043846583,-500.0,0.00028492,2]
[327403518,1716043846592,-805.79,0.00028492,2]
[327403520,1716043846602,-500.0,0.00028492,2]
[327403522,1716043846612,-500.0,0.00028492,2]
[327403524,1716043846622,-1678.78,0.00028492,2]
[327403526,1716043846631,-500.0,0.00028492,2]
[327403528,1716043846640,-627.29,0.00028492,2]
[327403530,1716043846651,-500.0,0.00028492,2]
[327403532,1716043846661,-1174.18,0.00028492,2]
[327403534,1716043846670,-4870.32,0.00028492,2]
[327403536,1716043846680,-575.52,0.00028492,2]
[327403538,1716043846690,-1151.34,0.00028492,2]
[327403540,1716043846700,-500.0,0.00028492,2]
[327403542,1716043846709,-2340.96,0.00028492,2]
[327403544,1716043846719,-772.43,0.00028492,2]
[327403546,1716043846729,-500.0,0.00028492,2]
[327403548,1716043846738,-500.0,0.00028492,2]
[327403551,1716043846748,-898.6,0.00028492,2]
[327403553,1716043846758,-659.13,0.00028492,2]
[327403555,1716043846767,-500.0,0.00028492,2]
[327403557,1716043846777,-500.0,0.00028492,2]
[327403559,1716043846787,-500.0,0.00028492,2]
[327403561,1716043846796,-500.0,0.00028492,2]
[327403563,1716043846806,-500.0,0.00028492,2]
[327403565,1716043846815,-659.07,0.00028492,2]
[327403567,1716043846825,-500.0,0.00028492,2]
[327403569,1716043846834,-500.0,0.00028492,2]
[327403571,1716043846844,-772.47,0.00028492,2]
[327403573,1716043846854,-500.0,0.00028492,2]
[327403575,1716043846863,-568.15,0.00028492,2]
[327403577,1716043846875,-500.0,0.00028492,2]
[327403579,1716043846885,-941.67,0.00028492,2]
[327403581,1716043846895,-500.0,0.00028492,2]
[327403583,1716043846904,-500.0,0.00028492,2]
[327403584,1716043846915,-500.0,0.00028492,2]
[327403585,1716043846925,-500.0,0.00028492,2]
[327403586,1716043846935,-500.0,0.00028492,2]
[327403587,1716043846944,-734.54,0.00028492,2]
[327403588,1716043846954,-500.0,0.00028492,2]
[327403589,1716043846964,-500.0,0.00028492,2]
[327403590,1716043846974,-500.0,0.00028492,2]
[327403591,1716043846983,-491.50674631,0.00028493,2]
[327403592,1716043846993,-500.0,0.00028493,2]
[327403594,1716043847003,-500.0,0.00028493,2]
[327403596,1716043847014,-521.45,0.00028493,2]
[327403598,1716043847024,-518.21,0.00028493,2]
[327403600,1716043847033,-500.0,0.00028493,2]
[327403602,1716043847043,-725.67,0.00028493,2]
[327403604,1716043847052,-500.0,0.00028493,2]
[327403606,1716043847062,-500.0,0.00028493,2]
[327403608,1716043847071,-500.0,0.00028493,2]
[327403610,1716043847081,-794.88,0.00028493,2]
[327403612,1716043847091,-500.0,0.00028493,2]
[327403614,1716043847100,-500.0,0.00028493,2]
[327403616,1716043847109,-500.0,0.00028493,2]
[327403618,1716043847119,-500.0,0.00028493,2]
[327403620,1716043847128,-500.0,0.00028493,2]
[327403622,1716043847137,-500.0,0.00028493,2]
[327403624,1716043847146,-515.82,0.00028493,2]
[327403626,1716043847155,-500.0,0.00028493,2]
[327403628,1716043847165,-1000.0,0.000285,2]
[327403630,1716043847175,-13409.88514601,0.0002871,2]
[327403632,1716043847186,-869.28,0.00028712,2]
[327403634,1716043847195,-869.28,0.00028712,2]
[327403636,1716043847205,-869.28,0.00028712,2]
[327403638,1716043847214,-1564.60657979,0.00028737,2]
[327403640,1716043847224,-803.37762482,0.00028764,2]
[327403642,1716043847233,-500.0,0.00028765,2]
[327403644,1716043847242,-500.0,0.00028765,2]
[327403646,1716043847251,-1163.37,0.00028765,2]
[327403648,1716043847261,-392.8,0.00028765,2]
[327403650,1716043847271,-500.0,0.00028765,2]
[327403652,1716043847283,-500.0,0.00028765,2]
[327403655,1716043847294,-500.0,0.00028765,2]
[327403657,1716043847303,-247.14422341,0.00028765,2]
[327403659,1716043847312,-500.0,0.00028765,2]
[327403661,1716043847322,-575.84,0.00028765,2]
[327403663,1716043847332,-500.0,0.00028765,2]
[327403665,1716043847342,-214.06768644,0.00028765,2]
[327403667,1716043847352,-500.0,0.00028765,2]
[327403669,1716043847362,-500.0,0.00028765,2]
[327403671,1716043847374,-500.0,0.00028765,2]
[327403673,1716043847384,-500.0,0.00028765,2]
[327403675,1716043847395,-500.0,0.00028765,2]
[327403677,1716043847405,-500.0,0.00028765,2]
[327403679,1716043847414,-500.0,0.00028765,2]
[327403681,1716043847424,-786.04,0.00028765,2]
[327403683,1716043847433,-500.0,0.00028765,2]
[327403685,1716043847443,-500.0,0.00028765,2]
[327403687,1716043847453,-500.0,0.00028765,2]
[327403689,1716043847463,-500.0,0.00028765,2]
[327403691,1716043847473,-1056.08,0.00028765,2]
[327403693,1716043847482,-500.0,0.00028765,2]
[327403695,1716043847492,-628.44,0.00028765,2]
[327403697,1716043847501,-553.98,0.00028765,2]
[327403699,1716043847511,-533.33,0.00028765,2]
[327403701,1716043847521,-500.0,0.00028765,2]
[327403703,1716043847530,-500.0,0.00028765,2]
[327403705,1716043847540,-500.0,0.00028765,2]
[327403707,1716043847550,-500.0,0.00028765,2]
[327403709,1716043847559,-500.0,0.00028765,2]
[327403712,1716043847580,-500.0,0.00028765,2]
[327403714,1716043847591,-512.11,0.00028765,2]
[327403716,1716043847601,-500.0,0.00028765,2]
[327403718,1716043847611,-500.0,0.00028765,2]
[327403720,1716043847626,-525.27,0.00028765,2]
[327403722,1716043847637,-500.0,0.00028765,2]
[327403724,1716043847648,-631.26,0.00028765,2]
[327403726,1716043847657,-1903.5,0.00028765,2]
[327403728,1716043847668,-1461.37,0.00028765,2]
[327403730,1716043847678,-500.0,0.00028765,2]
[327403733,1716043847688,-500.0,0.00028765,2]
[327403735,1716043847698,-312.96433842,0.00028765,2]
[327403737,1716043847708,-534.41,0.00028765,2]
[327403739,1716043847718,-3002.35,0.00028765,2]
[327403741,1716043847729,-500.0,0.00028765,2]
[327403743,1716043847739,-500.0,0.00028765,2]
[327403745,1716043847749,-2677.22,0.00028765,2]
[327403747,1716043847759,-707.42,0.00028765,2]
[327403749,1716043847769,-500.0,0.00028765,2]
[327403751,1716043847779,-500.0,0.00028766,2]
[327403753,1716043847789,-584.61,0.00028766,2]
[327403755,1716043847800,-500.0,0.00028766,2]
[327403757,1716043847809,-500.0,0.00028766,2]
[327403759,1716043847819,-500.0,0.00028766,2]
[327403761,1716043847829,-500.0,0.00028766,2]
[327403763,1716043847838,-547.8,0.00028766,2]
[327403766,1716043847848,-500.0,0.00028766,2]
[327403768,1716043847858,-508.47,0.00028766,2]
[327403770,1716043847870,-500.0,0.00028766,2]
[327403772,1716043847880,-679.02,0.00028766,2]
[327403774,1716043847890,-646.11,0.00028766,2]
[327403776,1716043847899,-500.0,0.00028766,2]
[327403778,1716043847909,-200.22,0.00028766,2]
[327403780,1716043847919,-948.82,0.00028766,2]
[327403782,1716043847928,-2048.85,0.00028766,2]
[327403784,1716043847937,-728.94,0.00028766,2]
[327403786,1716043847947,-500.0,0.00028766,2]
[327403788,1716043847956,-500.0,0.00028766,2]
[327403790,1716043847965,-500.0,0.00028766,2]
[327403792,1716043847975,-500.0,0.00028766,2]
[327403794,1716043847984,-500.0,0.00028766,2]
[327403796,1716043847994,-500.0,0.00028766,2]
[327403798,1716043848003,-510.05,0.00028766,2]
[327403800,1716043848013,-500.0,0.00028766,2]
[327403802,1716043848023,-500.0,0.00028766,2]
[327403804,1716043848032,-500.0,0.00028766,2]
[327403806,1716043848041,-805.79,0.00028766,2]
[327403808,1716043848051,-500.0,0.00028766,2]
[327403810,1716043848060,-500.0,0.00028766,2]
[327403812,1716043848069,-1678.78,0.00028766,2]
[327403814,1716043848079,-500.0,0.00028766,2]
[327403816,1716043848088,-627.29,0.00028766,2]
[327403818,1716043848098,-500.0,0.00028766,2]
[327403820,1716043848107,-1174.18,0.00028766,2]
[327403822,1716043848117,-4870.32,0.00028766,2]
[327403824,1716043848130,-575.52,0.00028766,2]
[327403826,1716043848140,-1151.34,0.00028766,2]
[327403828,1716043848150,-2340.96,0.00028766,2]
[327403830,1716043848160,-772.43,0.00028766,2]
[327403832,1716043848170,-500.0,0.00028766,2]
[327403834,1716043848180,-500.0,0.00028766,2]
[327403836,1716043848190,-898.6,0.00028766,2]
[327403838,1716043848200,-659.13,0.00028766,2]
[327403840,1716043848210,-500.0,0.00028766,2]
[327403842,1716043848220,-500.0,0.00028766,2]
[327403844,1716043848229,-500.0,0.00028766,2]
[327403846,1716043848239,-500.0,0.00028766,2]
[327403848,1716043848249,-500.0,0.00028766,2]
[327403850,1716043848259,-659.07,0.00028766,2]
[327403852,1716043848269,-500.0,0.00028766,2]
[327403855,1716043848282,-500.0,0.00028766,2]
[327403856,1716043848292,-772.47,0.00028766,2]
[327403858,1716043848302,-500.0,0.00028766,2]
[327403860,1716043848311,-568.15,0.00028766,2]
[327403863,1716043848321,-500.0,0.00028766,2]
[327403865,1716043848331,-941.67,0.00028766,2]
[327403867,1716043848340,-500.0,0.00028766,2]
[327403868,1716043848350,-500.0,0.00028766,2]
[327403871,1716043848362,-500.0,0.00028766,2]
[327403872,1716043848373,-500.0,0.00028766,2]
[327403874,1716043848382,-734.54,0.00028766,2]
[327403877,1716043848392,-500.0,0.00028766,2]
[327403878,1716043848401,-500.0,0.00028766,2]
[327403881,1716043848411,-500.0,0.00028766,2]
[327403882,1716043848421,-584.31166355,0.00028767,2]
[327403884,1716043848430,-500.0,0.00028767,2]
[327403886,1716043848440,-521.45,0.00028767,2]
[327403889,1716043848450,-518.21,0.00028767,2]
[327403890,1716043848459,-500.0,0.00028767,2]
[327403892,1716043848469,-725.67,0.00028767,2]
[327403894,1716043848479,-500.0,0.00028767,2]
[327403896,1716043848488,-500.0,0.00028767,2]
[327403897,1716043848497,-500.0,0.00028767,2]
[327403898,1716043848506,-794.88,0.00028767,2]
[327403899,1716043848516,-500.0,0.00028767,2]
[327403900,1716043848526,-500.0,0.00028767,2]
[327403901,1716043848536,-500.0,0.00028767,2]
[327403902,1716043848545,-500.0,0.00028767,2]
[327403903,1716043848555,-500.0,0.00028767,2]
[327403904,1716043848564,-453.78,0.00028767,2]
[327403905,1716043848574,-515.82,0.00028767,2]
[327403906,1716043848583,-500.0,0.00028767,2]
[327403907,1716043848592,-222.1,0.00028858,2]
[327403908,1716043848602,-161.93051575,0.000289,2]
[327403909,1716043848611,-500.0,0.000289,10]
[327403910,1716043848622,-3008.00562,0.0002893,2]
[327403911,1716043848632,-146052.00351956,0.00029,7]
[327403912,1716043848641,-1824.4024003,0.00029,2]
[327403913,1716043848650,-200.0,0.00029,2]
[327403914,1716043848659,-330.94,0.00029039,2]
[327403915,1716043848669,-500.0,0.00029039,2]
[327403916,1716043848679,-1163.37,0.00029039,2]
[327403917,1716043848689,-500.0,0.00029039,2]
[327403918,1716043848698,-238.30629421,0.00029039,2]
[327403919,1716043848708,-500.0,0.00029039,2]
[327403920,1716043848717,-575.84,0.00029039,2]
[327403921,1716043848727,-500.0,0.00029039,2]
[327403922,1716043848737,-647.9322908,0.00029039,2]
[327403923,1716043848747,-500.0,0.00029039,2]
[327403924,1716043848757,-500.0,0.00029039,2]
[327403925,1716043848767,-500.0,0.00029039,2]
[327403926,1716043848777,-500.0,0.00029039,2]
[327403927,1716043848786,-500.0,0.00029039,2]
[327403928,1716043848796,-153.42,0.00029039,2]
[327403929,1716043848806,-786.04,0.00029039,2]
[327403930,1716043848815,-500.0,0.00029039,2]
[327403931,1716043848825,-500.0,0.00029039,2]
[327403932,1716043848836,-500.0,0.00029039,2]
[327403933,1716043848845,-500.0,0.00029039,2]
[327403934,1716043848855,-1056.08,0.00029039,2]
[327403935,1716043848866,-379.92673869,0.00029039,2]
[327403936,1716043848876,-628.44,0.00029039,2]
[327403937,1716043848886,-553.98,0.00029039,2]
[327403938,1716043848895,-533.33,0.00029039,2]
[327403939,1716043848904,-500.0,0.00029039,2]
[327403940,1716043848914,-500.0,0.00029039,2]
[327403941,1716043848924,-500.0,0.00029039,2]
[327403942,1716043848934,-500.0,0.00029039,2]
[327403943,1716043848944,-500.0,0.00029039,2]
[327403944,1716043848953,-500.0,0.00029039,2]
[327403945,1716043848964,-500.0,0.00029039,2]
[327403946,1716043848974,-525.27,0.00029039,2]
[327403947,1716043848984,-500.0,0.00029039,2]
[327403948,1716043848994,-631.26,0.00029039,2]
[327403949,1716043849005,-1903.5,0.00029039,2]
[327403950,1716043849014,-1461.37,0.00029039,2]
[327403951,1716043849024,-500.0,0.00029039,2]
[327403952,1716043849034,-500.0,0.00029039,2]
[327403953,1716043849043,-534.41,0.00029039,2]
[327403954,1716043849053,-3002.35,0.00029039,2]
[327403955,1716043849062,-385.51,0.00029039,2]
[327403956,1716043849072,-2677.22,0.00029039,2]
[327403957,1716043849081,-500.0,0.00029039,2]
[327403958,1716043849091,-707.42,0.00029039,2]
[327403959,1716043849100,-500.0,0.00029039,2]
[327403960,1716043849110,-295.01978784,0.0002904,2]
[327403961,1716043849120,-584.61,0.0002904,2]
[327403962,1716043849129,-200.83034096,0.0002904,2]
[327403963,1716043849139,-500.0,0.0002904,2]
[327403964,1716043849148,-500.0,0.0002904,2]
[327403965,1716043849158,-500.0,0.0002904,2]
[327403966,1716043849167,-547.8,0.0002904,2]
[327403967,1716043849177,-286.8954892,0.0002904,2]
[327403968,1716043849186,-508.47,0.0002904,2]
[327403969,1716043849196,-500.0,0.0002904,2]
[327403970,1716043849207,-679.02,0.0002904,2]
[327403971,1716043849216,-646.11,0.0002904,2]
[327403972,1716043849225,-383.36,0.0002904,2]
[327403973,1716043849234,-948.82,0.0002904,2]
[327403974,1716043849244,-2048.85,0.0002904,2]
[327403975,1716043849253,-728.94,0.0002904,2]
[327403976,1716043849263,-500.0,0.0002904,2]
[327403977,1716043849273,-500.0,0.0002904,2]
[327403978,1716043849287,-500.0,0.0002904,2]
[327403979,1716043849296,-500.0,0.0002904,2]
[327403980,1716043849306,-500.0,0.0002904,2]
[327403981,1716043849315,-510.05,0.0002904,2]
[327403982,1716043849325,-500.0,0.0002904,2]
[327403983,1716043849335,-500.0,0.0002904,2]
[327403984,1716043849344,-500.0,0.0002904,2]
[327403985,1716043849354,-805.79,0.0002904,2]
[327403986,1716043849366,-500.0,0.0002904,2]
[327403987,1716043849378,-500.0,0.0002904,2]
[327403988,1716043849388,-1678.78,0.0002904,2]
[327403989,1716043849397,-500.0,0.0002904,2]
[327403990,1716043849407,-627.29,0.0002904,2]
[327403991,1716043849416,-500.0,0.0002904,2]
[327403992,1716043849425,-241.72462782,0.0002904,2]
[327403993,1716043849447,-479.50461479,0.0002904,2]
[327403994,1716043849459,-452.95075739,0.0002904,2]
[327403995,1716043849468,-1102.05269261,0.0002904,2]
[327403996,1716043849479,-3768.26730739,0.0002904,2]
[327403997,1716043849660,-575.52,0.0002904,2]
[327403998,1716043849669,-1151.34,0.0002904,2]
[327403999,1716043849680,-2340.96,0.0002904,2]
[327404000,1716043849689,-772.43,0.0002904,2]
[327404001,1716043849699,-154.79419949,0.0002904,2]
[327404002,1716043849711,-345.20580051,0.0002904,2]
[327404003,1716043849721,-500.0,0.0002904,2]
[327404004,1716043849730,-898.6,0.0002904,2]
[327404005,1716043849740,-659.13,0.0002904,2]
[327404006,1716043849750,-500.0,0.0002904,2]
[327404007,1716043849759,-646.95603864,0.0002904,2]
[327404008,1716043849769,-500.0,0.0002904,2]
[327404009,1716043849779,-500.0,0.0002904,2]
[327404010,1716043849789,-500.0,0.0002904,2]
[327404011,1716043849798,-659.07,0.0002904,2]
[327404012,1716043849808,-500.0,0.0002904,2]
[327404013,1716043849818,-500.0,0.0002904,2]
[327404014,1716043849827,-772.47,0.0002904,2]
[327404015,1716043849837,-500.0,0.0002904,2]
[327404016,1716043849847,-568.15,0.0002904,2]
[327404017,1716043849856,-500.0,0.0002904,2]
[327404018,1716043849865,-941.67,0.0002904,2]
[327404019,1716043849878,-500.0,0.0002904,2]
[327404020,1716043849889,-500.0,0.0002904,2]
[327404021,1716043849898,-500.0,0.0002904,2]
[327404022,1716043849908,-500.0,0.0002904,2]
[327404023,1716043849918,-734.54,0.0002904,2]
[327404024,1716043849927,-500.0,0.0002904,2]
[327404025,1716043849938,-524.35064291,0.0002904,2]
[327404026,1716043849947,-500.0,0.0002904,2]
[327404027,1716043849956,-588.27974842,0.00029041,2]
[327404028,1716043849967,-521.45,0.00029041,2]
[327404029,1716043849976,-518.21,0.00029041,2]
[327404030,1716043849985,-574.88362337,0.00029041,2]
[327404031,1716043849995,-725.67,0.00029041,2]
[327404032,1716043850005,-500.0,0.00029041,2]
[327404033,1716043850015,-500.0,0.00029041,2]
[327404034,1716043850025,-500.0,0.00029041,2]
[327404035,1716043850034,-794.88,0.00029041,2]
[327404036,1716043850044,-500.0,0.00029041,2]
[327404037,1716043850053,-500.0,0.00029041,2]
[327404038,1716043850063,-500.0,0.00029041,2]
[327404039,1716043850072,-500.0,0.00029041,2]
[327404040,1716043850082,-500.0,0.00029041,2]
[327404041,1716043850091,-515.82,0.00029041,2]
[327404042,1716043850101,-500.0,0.00029041,2]
[327404043,1716043850110,-11746.21047371,0.00029215,2]
[327404044,1716043850122,-155.0,0.00029312,2]
[327404045,1716043850131,-1213.61919427,0.00029312,2]
[327404046,1716043850141,-500.0,0.00029313,2]
[327404047,1716043850150,-1163.37,0.00029313,2]
[327404048,1716043850159,-227.82160483,0.00029313,2]
[327404049,1716043850168,-500.0,0.00029313,2]
[327404050,1716043850178,-575.84,0.00029313,2]
[327404051,1716043850188,-500.0,0.00029313,2]
[327404052,1716043850197,-500.0,0.00029313,2]
[327404053,1716043850207,-500.0,0.00029313,2]
[327404054,1716043850217,-500.0,0.00029313,2]
[327404055,1716043850226,-500.0,0.00029313,2]
[327404056,1716043850235,-500.0,0.00029313,2]
[327404057,1716043850246,-786.04,0.00029313,2]
[327404058,1716043850255,-500.0,0.00029313,2]
[327404059,1716043850265,-236.25237915,0.00029313,2]
[327404060,1716043850275,-500.0,0.00029313,2]
[327404061,1716043850288,-500.0,0.00029313,2]
[327404062,1716043850298,-1056.08,0.00029313,2]
[327404063,1716043850307,-628.44,0.00029313,2]
[327404064,1716043850316,-553.98,0.00029313,2]
[327404065,1716043850326,-533.33,0.00029313,2]
[327404066,1716043850335,-500.0,0.00029313,2]
[327404067,1716043850346,-500.0,0.00029313,2]
[327404068,1716043850355,-500.0,0.00029313,2]
[327404069,1716043850366,-500.0,0.00029313,2]
[327404070,1716043850378,-500.0,0.00029313,2]
[327404071,1716043850388,-500.0,0.00029313,2]
[327404072,1716043850398,-500.0,0.00029313,2]
[327404074,1716043850407,-525.27,0.00029313,2]
[327404076,1716043850416,-500.0,0.00029313,2]
[327404078,1716043850426,-631.26,0.00029313,2]
[327404080,1716043850435,-1903.5,0.00029313,2]
[327404082,1716043850444,-1461.37,0.00029313,2]
[327404084,1716043850455,-500.0,0.00029313,2]
[327404086,1716043850464,-500.0,0.00029313,2]